bitfinex-derivatives/quotes_ETHF0:USTF0_20230104
["timestamp","ask_amount","ask_price","bid_price","bid_amount"]
[1672799858842,1.626,1231.5,1231.4,0.5]
[1672799859478,1.626,1231.5,1231.3,5.9552019]
[1672799859691,1.626,1231.4,1231.3,3.5073]
[1672799859898,1.626,1231.4,1231.3,0.5]
[1672799864103,1.626,1231.4,1231.3,3.5073]
[1672799867680,3.252,1231.4,1231.3,3.5073]
[1672799867879,3.252,1231.4,1231.3,6.4552019]
[1672799868094,1.626,1231.4,1231.3,5.25881206]
[1672799868517,1.626,1231.4,1231.3,6.45509392]
[1672799868839,1.626,1231.4,1231.3,6.45508162]
[1672799869045,1.626,1231.4,1231.3,5.25881206]
[1672799869895,1.626,1231.4,1231.3,6.45528232]
[1672799870723,3.252,1231.4,1231.3,1.69647026]
[1672799872399,3.252,1231.4,1231.2,2.94798232]
[1672799872609,1.626,1231.3,1231.2,4.27963407]
[1672799872826,1.626,1231.3,1231.2,10.19010731]
[1672799873047,1.626,1231.3,1231.2,7.84998496]
[1672799873560,1.626,1231.5,1231.3,1.626]
[1672799873770,1.626,1231.5,1231.4,5.99832652]
[1672799873979,1.626,1231.5,1231.4,4.20371061]
[1672799875461,1.626,1231.5,1231.4,3.0073]
[1672799878396,1.613,1231.5,1231.4,3.0073]
[1672799878808,1.613,1231.5,1231.3,1.626]
[1672799879028,1.626,1231.4,1231.3,1.626]
[1672799882813,1.626,1231.4,1231.3,2.82241061]
[1672799883126,1.626,1231.4,1231.3,1.626]
[1672799883537,1.626,1231.4,1231.3,2.82241061]
[1672799883751,1.626,1231.4,1231.3,4.61702652]
[1672799883958,1.626,1231.4,1231.3,1.626]
[1672799884171,1.626,1231.4,1231.3,4.61702652]
[1672799886384,1.626,1231.4,1231.3,3.42061591]
[1672799886589,1.61,1231.5,1231.3,5.81343713]
[1672799886804,1.613,1231.5,1231.4,7.19473713]
[1672799887013,1.613,1231.5,1231.4,6.00032462]
[1672799887219,1.613,1231.5,1231.4,6.00083137]
[1672799887430,1.613,1231.5,1231.4,6.00079253]
[1672799887641,1.613,1231.5,1231.4,4.80191591]
[1672799889119,1.613,1231.5,1231.4,7.19473713]
[1672799890483,1.626,1231.5,1231.4,3.0073]
[1672799892276,1.626,1231.5,1231.3,1.626]
[1672799892793,1.632,1231.9,1231.5,8.139]
[1672799893009,1.632,1231.9,1231.6,3.0073]
[1672799894056,1.632,1231.9,1231.8,3.0073]
[1672799894580,1.624,1232.0,1231.8,3.0073]
[1672799894789,3.0073,1232.5,1231.9,9.758]
[1672799895109,1.626,1232.4,1232.1,4.6293]
[1672799896049,1.626,1232.4,1232.1,12.7683]
[1672799897306,1.626,1232.2,1231.9,3.0073]
[1672799897525,1.616,1232.0,1231.9,3.0073]
[1672799898668,1.616,1232.0,1231.7,12.7603]
[1672799898883,1.616,1232.0,1231.9,3.0073]
[1672799899207,1.616,1232.0,1231.9,11.1463]
[1672799899412,1.616,1232.0,1231.7,4.6213]
[1672799902346,1.616,1232.0,1231.9,11.1463]
[1672799902667,4.624,1232.2,1231.9,4.6333]
[1672799902872,1.613,1232.1,1231.9,3.0073]
[1672799903085,1.626,1232.1,1231.9,3.0073]
[1672799908866,1.613,1232.0,1231.6,13.139]
[1672799909085,6.0073,1232.2,1231.8,3.0073]
[1672799909086,1.626,1232.1,1231.8,3.0073]
[1672799909289,1.61,1231.9,1231.8,3.0073]
[1672799909501,1.626,1231.9,1231.8,3.0073]
[1672799913526,3.245,1231.9,1231.8,3.0073]
[1672799913740,3.245,1231.9,1231.6,3.0073]
[1672799913948,1.626,1232.1,1231.8,3.0073]
[1672799914157,1.624,1231.9,1231.8,3.0073]
[1672799914896,1.626,1231.9,1231.8,3.0073]
[1672799917216,1.626,1231.9,1231.6,1.626]
[1672799917409,1.626,1231.8,1231.6,3.0073]
[1672799919629,1.613,1231.7,1231.6,3.0073]
[1672799921949,1.626,1231.8,1231.6,3.0073]
[1672799923607,1.626,1231.9,1231.6,3.0073]
[1672799923815,1.626,1231.9,1231.5,1.618]
[1672799923816,1.626,1231.9,1231.8,3.0073]
[1672799927580,3.25,1231.9,1231.6,3.0073]
[1672799927891,1.626,1231.7,1231.4,4.20707313]
[1672799928207,1.613,1231.6,1231.4,4.20707313]
[1672799928740,1.613,1231.6,1231.4,3.0073]
[1672799929896,1.613,1231.5,1231.4,3.0073]
[1672799931050,1.626,1231.6,1231.4,3.0073]
[1672799932200,1.613,1231.5,1231.4,3.0073]
[1672799934406,1.626,1231.6,1231.4,3.0073]
[1672799937671,1.624,1231.5,1231.4,3.0073]
[1672799937882,1.626,1231.5,1231.2,3.0073]
[1672799938188,3.0,1231.4,1231.3,0.5]
[1672799938392,4.626,1231.4,1231.2,3.0073]
[1672799938608,1.626,1231.3,1231.2,3.0073]
[1672799939458,1.626,1231.3,1231.1,0.5]
[1672799939668,1.613,1231.2,1231.1,0.5]
[1672799941452,1.613,1231.2,1231.0,4.20707313]
[1672799941453,10.547,1231.2,1230.8,4.20707313]
[1672799941663,3.25,1230.9,1230.8,4.70707313]
[1672799942296,1.632,1231.2,1230.8,4.70707313]
[1672799942502,1.624,1230.9,1230.8,4.70707313]
[1672799942919,1.624,1230.9,1230.8,3.5073]
[1672799946288,3.234,1230.9,1230.8,3.0073]
[1672799946922,1.624,1230.9,1230.8,3.0073]
[1672799947239,1.624,1231.0,1230.8,3.0073]
[1672799948080,1.626,1231.1,1230.8,4.6263]
[1672799948283,1.626,1231.1,1231.0,3.0073]
[1672799950185,1.626,1231.1,1230.8,3.0073]
[1672799950399,1.626,1230.9,1230.8,3.0073]
[1672799950601,1.30598401,1230.9,1230.8,4.20707313]
[1672799951129,1.30598401,1230.9,1230.8,6.00168904]
[1672799951657,1.626,1230.9,1230.8,4.80191591]
[1672799953011,1.626,1230.9,1230.8,7.19473713]
[1672799953541,1.626,1230.9,1230.8,4.80191591]
[1672799954273,1.626,1230.9,1230.8,7.19473713]
[1672799954601,1.626,1230.9,1230.8,4.80191591]
[1672799954801,1.626,1230.9,1230.8,7.19473713]
[1672799955016,1.626,1230.9,1230.8,5.99742067]
[1672799957121,1.626,1230.9,1230.8,4.20280476]
[1672799957325,1.626,1230.9,1230.8,5.99742067]
[1672799957961,1.626,1230.9,1230.8,3.0073]
[1672799965523,1.626,1230.9,1230.8,5.99742067]
[1672799966361,1.626,1230.9,1230.8,4.20280476]
[1672799967305,1.626,1230.9,1230.8,1.19550476]
[1672799967623,3.252,1230.9,1230.7,1.19550476]
[1672799967834,12.7723,1231.0,1230.7,1.19550476]
[1672799967835,3.238,1230.8,1230.7,1.19550476]
[1672799968355,16.0103,1230.8,1230.5,4.18743713]
[1672799968564,3.239,1230.6,1230.5,1.79461591]
[1672799968783,3.239,1230.6,1230.5,1.04280802]
[1672799969832,11.378,1230.6,1230.3,3.40317324]
[1672799970146,1.624,1230.4,1230.3,0.5]
[1672799970352,1.624,1230.4,1230.2,5.91047324]
[1672799970566,1.626,1230.3,1230.2,3.5073]
[1672799970765,1.626,1230.3,1230.2,4.94805772]
[1672799971406,1.626,1230.3,1230.2,3.5073]
[1672799973504,1.626,1230.3,1230.2,3.0073]
[1672799973714,3.252,1230.3,1230.0,5.91047324]
[1672799973920,1.626,1230.1,1230.0,3.0073]
[1672799974131,1.626,1230.1,1230.0,0.5]
[1672799976649,1.626,1230.1,1230.0,3.5073]
[1672799976860,1.626,1230.1,1230.0,4.9482664]
[1672799977078,1.626,1230.1,1230.0,3.5073]
[1672799978863,1.619,1230.1,1230.0,3.5073]
[1672799979072,1.626,1230.2,1230.0,4.94819315]
[1672799979287,1.626,1230.2,1230.0,3.5073]
[1672799979495,1.619,1230.4,1230.1,8.06676931]
[1672799979808,1.1814,1230.7,1230.4,8.139]
[1672799979809,3.0,1230.7,1230.4,8.139]
[1672799980021,1.62,1230.6,1230.3,3.0073]
[1672799980330,3.0,1230.7,1230.3,3.0073]
[1672799980545,1.626,1230.5,1230.3,3.0073]
[1672799980757,1.30585303,1230.5,1230.3,3.0073]
[1672799982858,1.617,1230.4,1230.3,3.0073]
[1672799986319,1.626,1230.5,1230.3,3.0073]
[1672799989049,1.626,1230.5,1230.2,1.621]
[1672799989263,1.626,1230.5,1230.4,3.0073]
[1672799992413,1.626,1230.5,1230.2,3.0073]
[1672799992620,1.626,1230.3,1230.2,3.0073]
[1672799996404,1.626,1230.3,1230.0,5.4281713]
[1672799996612,1.611,1230.1,1230.0,5.4281713]
[1672800003033,1.611,1230.1,1230.0,7.82535291]
[1672800003243,1.611,1230.1,1230.0,9.2662923]
[1672800003972,1.611,1230.1,1230.0,9.26631364]
[1672800004181,1.611,1230.1,1230.0,7.82535291]
[1672800004390,1.611,1230.1,1230.0,9.26630309]
[1672800004605,1.611,1230.1,1230.0,7.82535291]
[1672800007023,1.611,1230.1,1230.0,5.4281713]
[1672800007232,1.611,1230.1,1230.0,9.2664238]
[1672800009228,1.611,1230.1,1230.0,12.16959704]
[1672800009647,1.611,1230.1,1230.0,6.86924219]
[1672800009860,1.611,1230.1,1230.0,12.18004919]
[1672800010071,1.611,1230.1,1230.0,12.18020671]
[1672800010280,1.611,1230.1,1230.0,9.27703347]
[1672800010498,1.611,1230.1,1230.0,9.77241543]
[1672800010704,1.611,1230.1,1230.0,12.1801845]
[1672800010908,1.29077277,1230.1,1230.0,9.77241543]
[1672800011336,1.29077277,1230.1,1230.0,12.180084]
[1672800012173,1.29077277,1230.1,1230.0,9.27693498]
[1672800012594,1.29077277,1230.1,1230.0,12.18010822]
[1672800012803,1.29077277,1230.1,1230.0,9.27693498]
[1672800016700,1.29077277,1230.1,1230.0,7.83586409]
[1672800016906,1.29077277,1230.1,1230.0,9.27689753]
[1672800017220,1.29077277,1230.1,1230.0,7.83586409]
[1672800018685,1.29077277,1230.1,1230.0,9.27687473]
[1672800019117,1.29077277,1230.1,1230.0,7.83586409]
[1672800019741,1.29077277,1230.1,1230.0,9.27684128]
[1672800020059,1.626,1230.2,1230.0,9.27685498]
[1672800020266,1.626,1230.2,1230.0,7.83586409]
[1672800022683,1.62,1230.4,1230.1,5.21009279]
[1672800022893,1.626,1230.5,1230.3,3.0073]
[1672800023942,1.626,1230.5,1230.3,11.1463]
[1672800024153,1.612,1230.6,1230.3,12.7623]
[1672800026157,1.612,1230.6,1230.5,3.0073]
[1672800026472,1.626,1230.7,1230.5,3.0073]
[1672800026686,1.626,1230.7,1230.5,11.1463]
[1672800027108,1.615,1230.8,1230.6,0.5]
[1672800028151,1.622,1230.7,1230.6,0.5]
[1672800030889,3.248,1230.7,1230.3,3.0073]
[1672800031101,4.612,1230.6,1230.4,0.5]
[1672800031410,1.611,1230.5,1230.4,0.5]
[1672800032251,1.611,1230.5,1230.4,3.5073]
[1672800035089,1.611,1230.5,1230.4,0.5]
[1672800036357,1.611,1230.5,1230.3,3.0073]
[1672800036557,3.252,1230.4,1230.1,19.62807448]
[1672800036771,1.617,1230.3,1230.2,0.5]
[1672800037820,1.622,1230.5,1230.2,3.92037448]
[1672800038034,1.622,1230.5,1230.3,3.0073]
[1672800040657,1.622,1230.4,1230.3,3.0073]
[1672800041080,1.622,1230.4,1230.2,2.30337448]
[1672800041081,1.622,1230.4,1230.2,0.5]
[1672800041714,1.622,1230.4,1230.2,11.6463]
[1672800041923,1.612,1230.6,1230.3,3.42437448]
[1672800041924,1.626,1230.6,1230.3,3.42437448]
[1672800042240,1.626,1230.6,1230.4,3.0073]
[1672800047185,1.626,1230.5,1230.4,3.0073]
[1672800048443,1.624,1230.5,1230.4,3.0073]
[1672800049181,1.626,1230.5,1230.4,3.0073]
[1672800061370,1.626,1230.5,1230.4,4.81067448]
[1672800062318,1.626,1230.5,1230.4,3.0073]
[1672800063792,1.626,1230.5,1230.4,4.81067448]
[1672800064949,1.626,1230.5,1230.4,1.80337448]
[1672800065164,1.626,1230.5,1230.4,3.0073]
[1672800065692,1.626,1230.5,1230.4,4.81067448]
[1672800067783,1.626,1230.5,1230.4,7.21836727]
[1672800068307,1.624,1230.6,1230.4,7.21836727]
[1672800068729,1.624,1230.6,1230.4,4.81067448]
[1672800068937,1.624,1230.6,1230.4,7.21836727]
[1672800069351,1.624,1230.6,1230.4,15.35736727]
[1672800069991,1.624,1230.6,1230.5,1.80337448]
[1672800070308,1.626,1230.8,1230.5,13.60215751]
[1672800070519,1.626,1230.8,1230.7,3.0073]
[1672800074395,1.626,1230.8,1230.7,4.81396432]
[1672800074831,1.626,1230.8,1230.7,3.0073]
[1672800075564,1.626,1230.9,1230.7,6.43996432]
[1672800076089,1.626,1230.9,1230.8,0.5]
[1672800077137,1.622,1230.9,1230.8,0.5]
[1672800077980,1.622,1230.9,1230.7,3.0073]
[1672800078191,1.626,1230.8,1230.7,3.0073]
[1672800080495,1.617,1230.8,1230.7,3.0073]
[1672800091323,1.617,1230.8,1230.7,3.00376283]
[1672800092058,1.626,1230.8,1230.7,3.00376283]
[1672800092268,1.626,1230.8,1230.6,0.5]
[1672800092483,1.611,1230.7,1230.6,0.5]
[1672800095317,1.611,1230.7,1230.6,1.70205055]
[1672800096674,1.611,1230.7,1230.6,4.70935055]
[1672800096888,1.611,1230.7,1230.6,3.5073]
[1672800098676,1.611,1230.7,1230.6,4.70935055]
[1672800099837,1.611,1230.7,1230.6,1.70205055]
[1672800100041,1.611,1230.7,1230.6,4.70935055]
[1672800102885,1.611,1230.7,1230.6,6.51601487]
[1672800104358,1.611,1230.7,1230.6,5.31396432]
[1672800104561,1.611,1230.7,1230.6,6.51830963]
[1672800104771,1.611,1230.7,1230.6,5.31396432]
[1672800105401,1.611,1230.7,1230.6,6.51882478]
[1672800106354,1.611,1230.7,1230.6,6.5189468]
[1672800106668,1.611,1230.7,1230.6,6.51895473]
[1672800106880,1.611,1230.7,1230.6,5.31396432]
[1672800107719,1.611,1230.7,1230.6,6.51942188]
[1672800108768,1.611,1230.7,1230.6,5.31396432]
[1672800110555,1.611,1230.7,1230.6,6.52007664]
[1672800111182,1.611,1230.7,1230.6,5.31396432]
[1672800112969,1.611,1230.7,1230.6,7.72165711]
[1672800113501,1.611,1230.7,1230.6,5.31396432]
[1672800113815,1.611,1230.7,1230.6,6.52011868]
[1672800118859,1.611,1230.7,1230.6,4.71345436]
[1672800119060,1.611,1230.7,1230.6,6.52011868]
[1672800119592,1.611,1230.7,1230.6,4.71345436]
[1672800120855,1.611,1230.7,1230.6,6.52011868]
[1672800122010,1.626,1230.8,1230.6,6.52011868]
[1672800122328,1.626,1230.8,1230.7,1.20615436]
[1672800122539,1.626,1230.8,1230.6,6.52011868]
[1672800122740,1.626,1230.8,1230.7,1.20615436]
[1672800124213,1.626,1230.8,1230.6,6.52011868]
[1672800126213,1.626,1230.8,1230.6,4.71345436]
[1672800129069,1.626,1230.8,1230.6,6.52011868]
[1672800129377,1.626,1230.8,1230.6,4.71345436]
[1672800129588,1.626,1230.8,1230.6,6.52011868]
[1672800129799,1.626,1230.8,1230.6,4.71345436]
[1672800130420,1.626,1230.8,1230.6,6.52011868]
[1672800130634,1.627,1230.8,1230.6,4.71345436]
[1672800132107,1.62,1230.7,1230.5,4.62981868]
[1672800132311,3.254,1230.6,1230.4,16.64881868]
[1672800132527,1.615,1230.5,1230.4,1.20615436]
[1672800133586,1.627,1230.5,1230.4,1.20615436]
[1672800133782,1.627,1230.5,1230.3,3.51281868]
[1672800133992,1.627,1230.4,1230.3,3.51281868]
[1672800134208,1.627,1230.4,1230.3,3.51290146]
[1672800134524,1.627,1230.4,1230.3,3.512873]
[1672800134734,1.627,1230.4,1230.3,1.70620868]
[1672800136214,1.627,1230.4,1230.3,0.5]
[1672800137162,1.627,1230.5,1230.3,3.512873]
[1672800137377,1.627,1230.5,1230.4,4.21350868]
[1672800138103,1.627,1230.5,1230.4,3.0073]
[1672800138735,1.627,1230.5,1230.3,1.70620868]
[1672800140426,1.627,1230.5,1230.4,3.0073]
[1672800142520,1.627,1230.5,1230.4,4.21350868]
[1672800143262,1.627,1230.5,1230.4,3.0073]
[1672800146838,1.627,1230.5,1230.4,4.21350868]
[1672800147991,1.627,1230.5,1230.4,3.0073]
[1672800149256,1.627,1230.5,1230.3,11.651873]
[1672800149472,1.627,1230.5,1230.4,3.0073]
[1672800152823,1.627,1230.5,1230.3,11.47220868]
[1672800153878,1.627,1230.5,1230.3,10.266]
[1672800155353,1.627,1230.5,1230.3,11.47220868]
[1672800156292,1.627,1230.5,1230.3,10.266]
[1672800156609,1.619,1230.4,1230.3,0.5]
[1672800160186,1.627,1230.5,1230.3,2.127]
[1672800164498,1.627,1230.5,1230.4,3.0073]
[1672800164692,1.627,1230.5,1230.3,2.127]
[1672800165755,1.627,1230.5,1230.3,10.266]
[1672800165966,1.627,1230.5,1230.3,11.47220868]
[1672800166698,1.627,1230.5,1230.3,13.278873]
[1672800166914,1.627,1230.5,1230.3,11.47220868]
[1672800167326,1.627,1230.5,1230.3,2.127]
[1672800168583,4.6343,1230.5,1230.3,2.127]
[1672800168793,4.6343,1230.5,1230.3,2.12405884]
[1672800170587,4.6343,1230.5,1230.3,3.33026752]
[1672800171003,4.6343,1230.5,1230.3,2.12405884]
[1672800172053,1.619,1230.4,1230.3,1.70326752]
[1672800176055,3.739,1230.4,1230.1,19.05656579]
[1672800176271,1.627,1230.2,1230.1,3.012873]
[1672800176578,1.627,1230.2,1230.1,1.70620868]
[1672800182878,1.627,1230.2,1230.1,0.5]
[1672800184883,1.627,1230.2,1230.1,1.70620868]
[1672800186458,1.627,1230.2,1230.1,3.512873]
[1672800186882,1.627,1230.2,1230.1,1.70620868]
[1672800187204,1.627,1230.2,1230.1,3.512873]
[1672800187408,1.627,1230.2,1230.1,1.70620868]
[1672800189936,1.627,1230.2,1230.1,3.512873]
[1672800190669,1.615,1230.5,1230.2,11.393]
[1672800190875,1.615,1230.5,1230.3,2.83277273]
[1672800191502,1.627,1230.5,1230.3,9.766]
[1672800191716,1.627,1230.5,1230.4,1.20577273]
[1672800192036,1.627,1230.7,1230.4,12.7663]
[1672800192243,1.627,1230.7,1230.5,1.20577273]
[1672800192456,1.627,1230.7,1230.6,3.0073]
[1672800192670,5.8398,1230.9,1230.6,4.6323]
[1672800192979,5.8398,1230.9,1230.7,1.627]
[1672800192980,1.627,1230.9,1230.7,1.627]
[1672800194234,1.627,1230.8,1230.6,4.6343]
[1672800196449,1.627,1230.8,1230.6,13.97907273]
[1672800196667,1.627,1230.9,1230.7,1.627]
[1672800197081,1.627,1230.8,1230.6,5.83807273]
[1672800197292,1.627,1230.8,1230.6,4.6323]
[1672800198024,1.627,1230.8,1230.6,5.83807273]
[1672800198237,1.627,1230.8,1230.6,4.6323]
[1672800200346,1.627,1230.9,1230.7,1.627]
[1672800200964,1.627,1230.9,1230.8,3.0073]
[1672800207286,1.627,1230.9,1230.7,1.627]
[1672800212012,1.627,1230.9,1230.6,12.7633]
[1672800213481,1.627,1230.9,1230.6,4.6243]
[1672800213692,1.627,1230.7,1230.6,3.0073]
[1672800220730,1.627,1230.7,1230.5,9.6343]
[1672800228393,1.627,1230.7,1230.5,10.84007273]
[1672800229236,1.627,1230.7,1230.5,9.6343]
[1672800229664,1.627,1230.7,1230.5,10.84007273]
[1672800232080,3.249,1230.7,1230.5,9.21307273]
[1672800235756,3.249,1230.7,1230.5,11.02173183]
[1672800236494,3.249,1230.7,1230.5,9.21307273]
[1672800237226,5.8137,1230.9,1230.5,17.35207273]
[1672800237439,7.6323,1231.1,1230.7,1.627]
[1672800237638,7.6323,1231.1,1230.7,5.84007273]
[1672800237849,1.627,1230.9,1230.7,5.84007273]
[1672800240480,1.641,1231.2,1230.8,5.64117273]
[1672800240481,1.62,1231.2,1230.8,5.64117273]
[1672800240687,17.0074,1231.4,1231.1,1.625]
[1672800240688,13.9944,1231.4,1231.1,1.625]
[1672800240895,3.0,1231.6,1231.1,1.625]
[1672800241103,4.6203,1231.7,1231.2,3.0073]
[1672800241311,4.6203,1231.7,1231.2,11.1463]
[1672800241523,4.6203,1231.7,1231.2,12.35207273]
[1672800241730,3.0,1231.6,1231.2,12.35207273]
[1672800241943,1.627,1231.8,1231.5,1.627]
[1672800242360,4.6343,1231.8,1231.5,1.627]
[1672800242891,1.627,1231.6,1231.4,2.83077273]
[1672800243103,1.627,1231.6,1231.4,1.625]
[1672800243523,1.625,1231.7,1231.5,5.0]
[1672800243524,1.627,1231.7,1231.5,5.0]
[1672800243728,1.627,1231.8,1231.6,1.627]
[1672800243939,4.627,1231.9,1231.7,1.627]
[1672800244150,1.627,1231.9,1231.7,1.627]
[1672800244365,1.627,1232.0,1231.8,1.627]
[1672800244788,4.627,1231.9,1231.6,3.0073]
[1672800244989,4.627,1231.9,1231.7,1.627]
[1672800245204,1.627,1231.8,1231.6,4.6343]
[1672800245417,1.627,1231.8,1231.6,12.7733]
[1672800245833,1.623,1231.9,1231.6,4.6343]
[1672800246257,3.0,1231.8,1231.6,4.6343]
[1672800246573,3.0,1231.8,1231.6,3.0073]
[1672800246784,4.869,1231.7,1231.2,3.0073]
[1672800246987,1.627,1231.4,1231.2,3.0073]
[1672800247517,0.5,1231.5,1231.1,11.1463]
[1672800247726,1.615,1231.4,1231.1,12.7733]
[1672800248145,1.627,1231.5,1231.3,3.0073]
[1672800248468,1.627,1231.5,1231.3,11.1463]
[1672800248681,1.627,1231.5,1231.3,8.139]
[1672800249213,1.627,1231.5,1231.2,1.625]
[1672800251513,4.6343,1231.6,1231.3,1.621]
[1672800251926,1.627,1231.4,1231.1,12.7733]
[1672800252357,1.627,1231.4,1231.1,4.6343]
[1672800254243,4.6343,1231.6,1231.3,1.625]
[1672800254244,1.627,1231.6,1231.3,1.625]
[1672800254660,1.627,1231.6,1231.3,4.6323]
[1672800255612,4.6343,1231.6,1231.3,4.6323]
[1672800257716,7.6303,1231.8,1231.5,1.627]
[1672800259710,7.6303,1231.8,1231.5,4.6343]
[1672800260977,1.623,1231.8,1231.5,12.7733]
[1672800261193,4.6263,1232.0,1231.7,1.625]
[1672800261404,3.0073,1232.0,1231.7,1.625]
[1672800261612,3.0,1231.9,1231.7,1.625]
[1672800262031,3.0073,1232.0,1231.7,1.625]
[1672800262243,3.0,1231.9,1231.7,1.625]
[1672800264031,4.6213,1232.0,1231.7,1.625]
[1672800265399,1.614,1232.0,1231.7,4.6323]
[1672800266661,1.614,1232.0,1231.8,8.139]
[1672800266872,1.614,1232.0,1231.7,4.6323]
[1672800266873,3.0073,1232.2,1231.7,4.6193]
[1672800267083,1.614,1231.8,1231.6,1.625]
[1672800268972,1.621,1231.9,1231.7,4.6323]
[1672800269918,1.621,1231.9,1231.7,1.625]
[1672800270136,1.614,1231.8,1231.6,1.625]
[1672800271178,4.6283,1232.0,1231.7,1.612]
[1672800271496,3.0,1231.9,1231.8,1.622]
[1672800271710,3.0,1231.9,1231.5,4.6323]
[1672800272550,3.0,1231.9,1231.5,12.7713]
[1672800273185,3.0073,1232.0,1231.5,12.7713]
[1672800273398,1.614,1231.8,1231.5,12.7713]
[1672800273607,1.614,1231.8,1231.5,4.6323]
[1672800275387,1.614,1231.8,1231.6,8.139]
[1672800275597,1.609,1231.9,1231.6,9.751]
[1672800277287,1.625,1231.8,1231.5,13.97407273]
[1672800277704,1.625,1231.8,1231.5,15.78273183]
[1672800278965,1.625,1231.8,1231.6,1.20577273]
[1672800279388,1.625,1231.8,1231.7,3.0073]
[1672800279584,1.625,1231.8,1231.7,4.21307273]
[1672800280639,1.621,1231.9,1231.7,4.21307273]
[1672800280853,1.625,1232.0,1231.7,7.64673183]
[1672800281067,1.625,1232.0,1231.8,1.20577273]
[1672800281279,1.625,1232.0,1231.7,7.64673183]
[1672800281489,1.625,1232.0,1231.7,15.78573183]
[1672800282642,1.625,1232.0,1231.7,13.97707273]
[1672800283169,1.625,1232.0,1231.7,15.78573183]
[1672800284329,4.6323,1232.0,1231.7,7.64673183]
[1672800284538,4.6323,1232.0,1231.7,5.83807273]
[1672800285794,4.6323,1232.0,1231.7,4.6323]
[1672800286635,3.24,1231.8,1231.6,1.20577273]
[1672800286849,1.625,1231.7,1231.6,1.20577273]
[1672800287053,1.625,1231.7,1231.5,6.02173183]
[1672800287899,1.625,1231.7,1231.6,1.20577273]
[1672800290638,1.617,1231.8,1231.6,1.20577273]
[1672800291474,1.625,1231.7,1231.6,1.20577273]
[1672800291685,1.625,1231.7,1231.5,6.02173183]
[1672800293360,1.625,1231.7,1231.4,12.77843183]
[1672800293780,1.625,1231.7,1231.4,10.96977273]
[1672800293992,1.625,1231.7,1231.4,2.83077273]
[1672800294414,1.625,1231.7,1231.4,4.63943183]
[1672800295248,4.6323,1231.7,1231.4,4.63943183]
[1672800295672,4.6323,1231.7,1231.4,2.83077273]
[1672800296302,4.6323,1231.7,1231.4,1.625]
[1672800297041,1.609,1231.6,1231.3,7.64673183]
[1672800297361,1.625,1231.5,1231.3,1.20577273]
[1672800299037,1.625,1231.5,1231.3,4.21307273]
[1672800299247,1.609,1231.6,1231.3,7.64673183]
[1672800299455,1.609,1231.6,1231.3,5.83807273]
[1672800299665,1.609,1231.6,1231.3,7.64673183]
[1672800301247,1.625,1231.7,1231.4,2.82477273]
[1672800301671,4.6323,1231.7,1231.4,2.82477273]
[1672800301883,1.625,1231.7,1231.5,1.619]
[1672800302514,1.625,1231.7,1231.5,15.77973183]
[1672800303035,4.6163,1232.1,1231.7,1.625]
[1672800303251,3.0073,1232.1,1231.9,1.625]
[1672800304612,4.6323,1232.1,1231.8,1.625]
[1672800308926,4.6323,1232.1,1231.8,1.6173461]
[1672800309131,3.0,1232.0,1231.8,1.6173461]
[1672800309654,1.625,1231.9,1231.6,2.81987371]
[1672800309867,1.625,1231.8,1231.5,13.95817371]
[1672800310082,3.0,1231.7,1231.5,5.81917371]
[1672800310393,2.125,1231.8,1231.5,5.81917371]
[1672800311855,1.625,1231.7,1231.5,4.20817371]
[1672800312180,4.625,1231.7,1231.5,3.0073]
[1672800313231,1.625,1231.7,1231.5,3.0073]
[1672800313649,1.625,1231.7,1231.5,4.20817371]
[1672800315964,1.625,1231.7,1231.5,3.0073]
[1672800317223,1.625,1231.7,1231.5,4.20817371]
[1672800317429,1.625,1231.7,1231.5,3.0073]
[1672800317643,1.625,1231.7,1231.5,4.20817371]
[1672800318065,1.625,1231.7,1231.5,3.0073]
[1672800318481,1.625,1231.7,1231.5,4.20817371]
[1672800319117,1.625,1231.7,1231.5,3.0073]
[1672800322172,1.624,1231.8,1231.5,4.6193]
[1672800322485,1.624,1231.8,1231.5,5.82017371]
[1672800322903,1.624,1231.8,1231.5,4.6193]
[1672800323328,1.624,1231.8,1231.5,5.82017371]
[1672800323524,1.624,1231.8,1231.5,4.6193]
[1672800323744,1.624,1231.8,1231.5,5.82017371]
[1672800323948,1.624,1231.8,1231.5,4.6193]
[1672800335509,4.6323,1231.9,1231.6,1.622]
[1672800336355,1.617,1231.8,1231.6,1.617]
[1672800338249,1.625,1231.7,1231.5,5.83317371]
[1672800338777,1.625,1231.7,1231.5,4.6323]
[1672800339195,1.625,1231.7,1231.5,1.625]
[1672800341820,1.625,1231.7,1231.5,5.83317371]
[1672800342141,1.625,1231.7,1231.5,4.6323]
[1672800345817,1.625,1231.7,1231.5,5.83317371]
[1672800349176,1.625,1231.7,1231.6,1.20087371]
[1672800350967,1.625,1231.9,1231.6,3.4336591]